fUSD/lending_fUSD_20250119
["ID","MTS","AMOUNT","RATE_DAILY","PERIOD"]
[349599289,1737322248143,-517.44850357,0.00020867,2]
[349599291,1737322248153,-541.1853524,0.00020872,2]
[349599293,1737322248164,-517.44850357,0.00020885,2]
[349599295,1737322248174,-17672.25057786,0.00020891,2]
[349599297,1737322248184,-6749.19023677,0.00020891,2]
[349599299,1737322248193,-517.44850357,0.00020893,2]
[349599301,1737322248203,-394.09577613,0.00020898,2]
[349599303,1737322248213,-394.09577613,0.00020898,2]
[349599305,1737322248223,-400.22186294,0.00020898,2]
[349599307,1737322248232,-158.218,0.000209,2]
[349599309,1737322248241,-4325.75841358,0.00020904,2]
[349599311,1737322248250,-6749.19023677,0.00020907,2]
[349599313,1737322248260,-6749.19023677,0.0002091,2]
[349599315,1737322248270,-17672.25057786,0.00020916,2]
[349599317,1737322248279,-541.1853524,0.0002093,2]
[349599319,1737322248289,-517.44850357,0.00020945,2]
[349599320,1737322248298,-394.09577613,0.00020947,2]
[349599321,1737322248307,-394.09577613,0.0002095,2]
[349599322,1737322248317,-2723.8625127,0.00020967,2]
[349599323,1737322248326,-649.81,0.00020994,2]
[349599324,1737322248335,-500.0,0.00020994,2]
[349599325,1737322248344,-500.0,0.00020994,2]
[349599326,1737322248353,-241.582488,0.00020994,2]
[349599328,1737322248362,-500.0,0.00020994,2]
[349599330,1737322248379,-500.0,0.00020994,2]
[349599332,1737322248389,-500.0,0.00020994,2]
[349599334,1737322248399,-500.0,0.00020994,2]
[349599336,1737322248409,-633.64,0.00020994,2]
[349599338,1737322248419,-581.08,0.00020994,2]
[349599340,1737322248430,-505.9,0.00020994,2]
[349599342,1737322248441,-500.0,0.00020994,2]
[349599344,1737322248450,-595.1,0.00020994,2]
[349599346,1737322248460,-500.0,0.00020994,2]
[349599348,1737322248470,-619.73,0.00020994,2]
[349599350,1737322248479,-534.73,0.00020994,2]
[349599352,1737322248489,-770.67,0.00020994,2]
[349599354,1737322248498,-500.0,0.00020994,2]
[349599356,1737322248508,-500.0,0.00020994,2]
[349599358,1737322248518,-500.0,0.00020994,2]
[349599360,1737322248528,-1480.05,0.00020994,2]
[349599362,1737322248539,-500.0,0.00020994,2]
[349599364,1737322248549,-500.0,0.00020994,2]
[349599366,1737322248559,-500.0,0.00020994,2]
[349599368,1737322248570,-500.0,0.00020994,2]
[349599370,1737322248580,-1778.88,0.00020994,2]
[349599372,1737322248591,-649.07,0.00020994,2]
[349599374,1737322248600,-500.0,0.00020994,2]
[349599376,1737322248612,-770.99,0.00020994,2]
[349599377,1737322248626,-500.0,0.00020994,2]
[349599380,1737322248636,-500.0,0.00020994,2]
[349599381,1737322248646,-1405.28,0.00020994,2]
[349599382,1737322248655,-500.0,0.00020994,2]
[349599383,1737322248665,-500.0,0.00020994,2]
[349599384,1737322248675,-500.0,0.00020994,2]
[349599385,1737322248684,-500.0,0.00020994,2]
[349599386,1737322248693,-500.0,0.00020994,2]
[349599387,1737322248703,-924.51,0.00020994,2]
[349599388,1737322248712,-500.0,0.00020994,2]
[349599389,1737322248721,-500.0,0.00020994,2]
[349599390,1737322248731,-1750.43,0.00020994,2]
[349599391,1737322248740,-608.38,0.00020994,2]
[349599393,1737322248749,-500.0,0.00020994,2]
[349599394,1737322248759,-500.0,0.00020994,2]
[349599395,1737322248769,-500.09,0.00020994,2]
[349599396,1737322248778,-512.61053966,0.00020994,2]
[349599397,1737322248788,-500.0,0.00020994,2]
[349599398,1737322248798,-940.93,0.00020994,2]
[349599399,1737322248807,-500.0,0.00020994,2]
[349599400,1737322248817,-863.64,0.00020994,2]
[349599401,1737322248826,-500.0,0.00020994,2]
[349599402,1737322248835,-500.0,0.00020994,2]
[349599403,1737322248845,-702.71,0.00020994,2]
[349599404,1737322248854,-500.0,0.00020994,2]
[349599405,1737322248864,-500.0,0.00020994,2]
[349599406,1737322248878,-710.23,0.00020994,2]
[349599407,1737322248888,-500.0,0.00020994,2]
[349599408,1737322248898,-543.52,0.00020994,2]
[349599409,1737322248908,-683.08,0.00020994,2]
[349599410,1737322248919,-1105.53,0.00020994,2]
[349599411,1737322248931,-593.7,0.00020994,2]
[349599412,1737322248941,-500.0,0.00020994,2]
[349599413,1737322248951,-500.0,0.00020994,2]
[349599414,1737322248964,-500.0,0.00020994,2]
[349599415,1737322248974,-151.0,0.00020994,2]
[349599416,1737322248983,-500.0,0.00020994,2]
[349599417,1737322248994,-228.09031421,0.00020994,2]
[349599418,1737322249004,-500.0,0.00020994,2]
[349599419,1737322249014,-807.0,0.00020994,2]
[349599420,1737322249024,-500.0,0.00020994,2]
[349599421,1737322249035,-522.78,0.00020994,2]
[349599422,1737322249046,-1482.4,0.00020994,2]
[349599423,1737322249056,-500.0,0.00020994,2]
[349599424,1737322249065,-500.0,0.00020994,2]
[349599425,1737322249075,-500.0,0.00020994,2]
[349599426,1737322249085,-500.0,0.00020994,2]
[349599427,1737322249095,-645.57,0.00020994,2]
[349599428,1737322249105,-500.0,0.00020994,2]
[349599429,1737322249115,-500.0,0.00020994,2]
[349599430,1737322249127,-199.85,0.00021,2]
[349599431,1737322249138,-700.0,0.00021,2]
[349599432,1737322249147,-351.77,0.00021015,2]
[349599433,1737322249156,-772.83,0.00021041,2]
[349599434,1737322249166,-772.83,0.00021041,2]
[349599436,1737322249175,-772.83,0.00021041,2]
[349599438,1737322249185,-772.83,0.00021041,2]
[349599440,1737322249195,-772.83,0.00021041,2]
[349599442,1737322249205,-772.83,0.00021041,2]
[349599444,1737322249216,-772.83,0.00021041,2]
[349599446,1737322249226,-772.83,0.00021041,2]
[349599448,1737322249236,-772.83,0.00021041,2]
[349599450,1737322249245,-150.0,0.00021054,2]
[349599452,1737322249255,-3899.0,0.00021054,2]
[349599454,1737322249264,-150.0,0.00021054,2]
[349599456,1737322249274,-1174.0,0.00021054,2]
[349599458,1737322249284,-522.0,0.00021082,2]
[349599460,1737322249294,-542.54,0.00021094,2]
[349599462,1737322249303,-500.0,0.00021094,2]
[349599464,1737322249312,-500.0,0.00021094,2]
[349599466,1737322249322,-500.0,0.00021094,2]
[349599468,1737322249331,-500.0,0.00021094,2]
[349599470,1737322249341,-500.0,0.00021094,2]
[349599472,1737322249350,-500.0,0.00021094,2]
[349599474,1737322249360,-500.0,0.00021094,2]
[349599476,1737322249374,-500.0,0.00021094,2]
[349599477,1737322249384,-500.0,0.00021094,2]
[349599479,1737322249394,-500.0,0.00021094,2]
[349599481,1737322249405,-467.11005055,0.00021094,2]
[349599483,1737322249415,-500.0,0.00021094,2]
[349599485,1737322249426,-500.0,0.00021094,2]
[349599487,1737322249436,-500.0,0.00021094,2]
[349599489,1737322249446,-540.86,0.00021094,2]
[349599491,1737322249456,-500.0,0.00021094,2]
[349599493,1737322249466,-500.0,0.00021094,2]
[349599495,1737322249476,-500.0,0.00021094,2]
[349599496,1737322249487,-500.0,0.00021094,2]
[349599497,1737322249496,-500.0,0.00021094,2]
[349599498,1737322249506,-500.0,0.00021094,2]
[349599499,1737322249516,-500.0,0.00021094,2]
[349599500,1737322249526,-500.0,0.00021094,2]
[349599501,1737322249536,-500.0,0.00021094,2]
[349599502,1737322249545,-500.0,0.00021094,2]
[349599503,1737322249555,-500.0,0.00021094,2]
[349599504,1737322249565,-500.0,0.00021094,2]
[349599506,1737322249576,-500.0,0.00021094,2]
[349599508,1737322249587,-554.84,0.00021094,2]
[349599510,1737322249596,-601.47,0.00021094,2]
[349599512,1737322249606,-500.0,0.00021094,2]
[349599514,1737322249616,-500.0,0.00021094,2]
[349599516,1737322249632,-500.0,0.00021094,2]
[349599518,1737322249643,-500.0,0.00021094,2]
[349599520,1737322249652,-500.0,0.00021094,2]
[349599522,1737322249661,-598.93,0.00021094,2]
[349599524,1737322249671,-500.0,0.00021094,2]
[349599526,1737322249680,-150.75,0.00021094,2]
[349599528,1737322249691,-500.0,0.00021094,2]
[349599530,1737322249700,-500.0,0.00021094,2]
[349599532,1737322249709,-500.0,0.00021094,2]
[349599534,1737322249720,-500.0,0.00021094,2]
[349599535,1737322249730,-500.0,0.00021094,2]
[349599537,1737322249740,-624.28939479,0.00021094,2]
[349599540,1737322249750,-500.0,0.00021094,2]
[349599542,1737322249760,-500.0,0.00021094,2]
[349599543,1737322249769,-500.0,0.00021094,2]
[349599545,1737322249778,-500.0,0.00021094,2]
[349599547,1737322249788,-500.0,0.00021094,2]
[349599549,1737322249797,-870.44,0.00021094,2]
[349599551,1737322249807,-500.0,0.00021094,2]
[349599553,1737322249817,-500.0,0.00021094,2]
[349599555,1737322249827,-500.0,0.00021094,2]
[349599557,1737322249837,-175.75937977,0.00021094,2]
[349599559,1737322249846,-500.0,0.00021094,2]
[349599561,1737322249856,-1267.35,0.00021094,2]
[349599564,1737322249866,-500.0,0.00021094,2]
[349599566,1737322249882,-500.0,0.00021094,2]
[349599567,1737322249894,-500.0,0.00021094,2]
[349599570,1737322249904,-500.0,0.00021094,2]
[349599571,1737322249914,-500.0,0.00021094,2]
[349599573,1737322249929,-500.0,0.00021094,2]
[349599575,1737322249939,-500.0,0.00021094,2]
[349599577,1737322249948,-500.0,0.00021094,2]
[349599579,1737322249957,-1000.0,0.00021094,2]
[349599581,1737322249969,-500.0,0.00021094,2]
[349599583,1737322249980,-500.0,0.00021094,2]
[349599585,1737322249989,-500.0,0.00021094,2]
[349599587,1737322250003,-500.0,0.00021094,2]
[349599589,1737322250015,-500.0,0.00021094,2]
[349599591,1737322250026,-526.12,0.00021094,2]
[349599593,1737322250036,-500.0,0.00021094,2]
[349599595,1737322250047,-777.04,0.00021094,2]
[349599597,1737322250058,-502.23,0.00021094,2]
[349599599,1737322250069,-516.70881309,0.00021094,2]
[349599601,1737322250080,-500.0,0.00021094,2]
[349599603,1737322250091,-500.0,0.00021094,2]
[349599605,1737322250103,-500.0,0.00021094,2]
[349599607,1737322250115,-590.52,0.00021095,2]
[349599609,1737322250135,-500.0,0.00021095,2]
[349599611,1737322250147,-500.0,0.00021095,2]
[349599614,1737322250159,-500.0,0.00021095,2]
[349599616,1737322250171,-817.65,0.00021095,2]
[349599618,1737322250181,-500.0,0.00021095,2]
[349599620,1737322250192,-987.09,0.00021095,2]
[349599622,1737322250204,-500.0,0.00021095,2]
[349599624,1737322250216,-500.0,0.00021095,2]
[349599626,1737322250226,-502.43,0.00021095,2]
[349599628,1737322250238,-963.33,0.00021095,2]
[349599630,1737322250249,-500.0,0.00021095,2]
[349599632,1737322250259,-500.0,0.00021095,2]
[349599634,1737322250268,-150.0,0.00021127,2]
[349599636,1737322250278,-229.37,0.00021178,2]
[349599638,1737322250288,-2723.8625127,0.000212,2]
[349599640,1737322250298,-2339.48427,0.0002122,2]
[349599642,1737322250308,-649.81,0.00021268,2]
[349599644,1737322250319,-500.0,0.00021268,2]
[349599646,1737322250329,-500.0,0.00021268,2]
[349599648,1737322250338,-241.582488,0.00021268,2]
[349599650,1737322250348,-500.0,0.00021268,2]
[349599652,1737322250358,-500.0,0.00021268,2]
[349599654,1737322250367,-500.0,0.00021268,2]
[349599656,1737322250383,-500.0,0.00021268,2]
[349599658,1737322250392,-633.64,0.00021268,2]
[349599660,1737322250402,-581.08,0.00021268,2]
[349599662,1737322250411,-505.9,0.00021268,2]
[349599664,1737322250422,-500.0,0.00021268,2]
[349599666,1737322250432,-595.1,0.00021268,2]
[349599668,1737322250441,-500.0,0.00021268,2]
[349599670,1737322250451,-619.73,0.00021268,2]
[349599672,1737322250460,-534.73,0.00021268,2]
[349599674,1737322250470,-770.67,0.00021268,2]
[349599676,1737322250480,-500.0,0.00021268,2]
[349599678,1737322250493,-500.0,0.00021268,2]
[349599680,1737322250503,-500.0,0.00021268,2]
[349599682,1737322250514,-1480.05,0.00021268,2]
[349599684,1737322250524,-500.0,0.00021268,2]
[349599686,1737322250533,-500.0,0.00021268,2]
[349599688,1737322250543,-271.28025313,0.00021268,2]
[349599690,1737322250553,-500.0,0.00021268,2]
[349599692,1737322250562,-1778.88,0.00021268,2]
[349599694,1737322250571,-649.07,0.00021268,2]
[349599696,1737322250580,-500.0,0.00021268,2]
[349599698,1737322250590,-770.99,0.00021268,2]
[349599700,1737322250599,-500.0,0.00021268,2]
[349599702,1737322250610,-500.0,0.00021268,2]
[349599704,1737322250623,-1405.28,0.00021268,2]
[349599706,1737322250632,-500.0,0.00021268,2]
[349599708,1737322250642,-500.0,0.00021268,2]
[349599710,1737322250651,-500.0,0.00021268,2]
[349599712,1737322250661,-500.0,0.00021268,2]
[349599714,1737322250671,-500.0,0.00021268,2]
[349599716,1737322250680,-924.51,0.00021268,2]
[349599718,1737322250690,-500.0,0.00021268,2]
[349599720,1737322250699,-500.0,0.00021268,2]
[349599722,1737322250709,-1750.43,0.00021268,2]
[349599732,1737322250856,-608.38,0.00021268,2]
[349599734,1737322250871,-500.0,0.00021268,2]
[349599736,1737322250882,-500.0,0.00021268,2]
[349599738,1737322250893,-500.09,0.00021268,2]
[349599740,1737322250903,-500.0,0.00021268,2]
[349599742,1737322250914,-940.93,0.00021268,2]
[349599744,1737322250926,-500.0,0.00021268,2]
[349599746,1737322250936,-863.64,0.00021268,2]
[349599748,1737322250946,-500.0,0.00021268,2]
[349599750,1737322250959,-500.0,0.00021268,2]
[349599752,1737322250975,-702.71,0.00021268,2]
[349599754,1737322250984,-500.0,0.00021268,2]
[349599756,1737322250994,-710.23,0.00021268,2]
[349599758,1737322251003,-500.0,0.00021268,2]
[349599760,1737322251013,-500.0,0.00021268,2]
[349599762,1737322251023,-543.52,0.00021268,2]
[349599764,1737322251033,-683.08,0.00021268,2]
[349599765,1737322251043,-1105.53,0.00021268,2]
[349599767,1737322251053,-593.7,0.00021268,2]
[349599769,1737322251063,-500.0,0.00021268,2]
[349599771,1737322251073,-500.0,0.00021268,2]
[349599773,1737322251084,-500.0,0.00021268,2]
[349599774,1737322251095,-500.0,0.00021268,2]
[349599776,1737322251105,-318.93188695,0.00021268,2]
[349599778,1737322251115,-807.0,0.00021268,2]
[349599780,1737322251134,-500.0,0.00021268,2]
[349599782,1737322251145,-522.78,0.00021268,2]
[349599784,1737322251156,-1482.4,0.00021268,2]
[349599786,1737322251166,-500.0,0.00021268,2]
[349599788,1737322251176,-500.0,0.00021268,2]
[349599790,1737322251186,-500.0,0.00021268,2]
[349599792,1737322251197,-500.0,0.00021268,2]
[349599794,1737322251211,-645.57,0.00021268,2]
[349599796,1737322251222,-500.0,0.00021268,2]
[349599798,1737322251233,-500.0,0.00021268,2]
[349599800,1737322251243,-500.0,0.00021367,2]
[349599802,1737322251254,-500.0,0.00021368,2]
[349599804,1737322251264,-500.0,0.00021368,2]
[349599806,1737322251274,-165.31335906,0.00021368,2]
[349599808,1737322251284,-500.0,0.00021368,2]
[349599810,1737322251293,-500.0,0.00021368,2]
[349599811,1737322251303,-500.0,0.00021368,2]
[349599813,1737322251312,-500.0,0.00021368,2]
[349599815,1737322251323,-500.0,0.00021368,2]
[349599817,1737322251334,-500.0,0.00021368,2]
[349599819,1737322251343,-500.0,0.00021368,2]
[349599821,1737322251353,-500.0,0.00021368,2]
[349599823,1737322251362,-500.0,0.00021368,2]
[349599825,1737322251374,-500.0,0.00021368,2]
[349599827,1737322251384,-500.0,0.00021368,2]
[349599829,1737322251393,-500.0,0.00021368,2]
[349599831,1737322251403,-500.0,0.00021368,2]
[349599833,1737322251413,-500.0,0.00021368,2]
[349599835,1737322251424,-435.39,0.00021368,2]
[349599837,1737322251434,-500.0,0.00021368,2]
[349599839,1737322251443,-601.47,0.00021368,2]
[349599841,1737322251452,-184.33356163,0.00021368,2]
[349599843,1737322251462,-500.0,0.00021368,2]
[349599845,1737322251471,-500.0,0.00021368,2]
[349599847,1737322251480,-598.93,0.00021368,2]
[349599849,1737322251490,-500.0,0.00021368,2]
[349599851,1737322251499,-500.0,0.00021368,2]
[349599853,1737322251509,-500.0,0.00021368,2]
[349599855,1737322251518,-500.0,0.00021368,2]
[349599857,1737322251527,-500.0,0.00021368,2]
[349599859,1737322251537,-500.0,0.00021368,2]
[349599861,1737322251549,-526.43659824,0.00021368,2]
[349599863,1737322251559,-500.0,0.00021368,2]
[349599865,1737322251569,-500.0,0.00021368,2]
[349599867,1737322251579,-500.0,0.00021368,2]
[349599868,1737322251589,-500.0,0.00021368,2]
[349599869,1737322251600,-870.44,0.00021368,2]
[349599870,1737322251609,-500.0,0.00021368,2]
[349599871,1737322251619,-500.0,0.00021368,2]
[349599873,1737322251634,-500.0,0.00021368,2]
[349599875,1737322251644,-500.0,0.00021368,2]
[349599877,1737322251654,-1267.35,0.00021368,2]
[349599879,1737322251665,-500.0,0.00021368,2]
[349599881,1737322251675,-500.0,0.00021368,2]
[349599883,1737322251684,-500.0,0.00021368,2]
[349599884,1737322251694,-500.0,0.00021368,2]
[349599886,1737322251703,-500.0,0.00021368,2]
[349599888,1737322251712,-500.0,0.00021368,2]
[349599890,1737322251721,-500.0,0.00021368,2]
[349599892,1737322251731,-1000.0,0.00021368,2]
[349599894,1737322251741,-500.0,0.00021368,2]
[349599896,1737322251751,-500.0,0.00021368,2]
[349599898,1737322251760,-500.0,0.00021368,2]
[349599900,1737322251770,-500.0,0.00021368,2]
[349599902,1737322251780,-500.0,0.00021368,2]
[349599904,1737322251791,-526.12,0.00021368,2]
[349599906,1737322251800,-500.0,0.00021368,2]
[349599908,1737322251810,-777.04,0.00021368,2]
[349599910,1737322251820,-502.23,0.00021368,2]
[349599912,1737322251831,-533.08559234,0.00021368,2]
[349599914,1737322251840,-500.0,0.00021368,2]
[349599916,1737322251850,-500.0,0.00021368,2]
[349599918,1737322251859,-590.52,0.00021369,2]
[349599920,1737322251868,-222.40626884,0.00021369,2]
[349599922,1737322251884,-401.93124427,0.00021369,2]
[349599924,1737322251893,-500.0,0.00021369,2]
[349599926,1737322251903,-817.65,0.00021369,2]
[349599928,1737322251914,-500.0,0.00021369,2]
[349599930,1737322251926,-987.09,0.00021369,2]
[349599932,1737322251938,-500.0,0.00021369,2]
[349599934,1737322251948,-500.0,0.00021369,2]
[349599935,1737322251959,-502.43,0.00021369,2]
[349599936,1737322251969,-963.33,0.00021369,2]
[349599937,1737322251979,-500.0,0.00021369,2]
[349599938,1737322251989,-500.0,0.00021369,2]
[349599939,1737322251999,-2723.8625127,0.00021433,2]
[349599940,1737322252009,-152.0,0.00021496,3]
[349599941,1737322252019,-649.81,0.00021542,2]
[349599943,1737322252030,-500.0,0.00021542,2]
[349599945,1737322252040,-241.582488,0.00021542,2]
[349599947,1737322252050,-500.0,0.00021542,2]
[349599948,1737322252061,-363.54,0.00021542,2]
[349599950,1737322252071,-500.0,0.00021542,2]
[349599953,1737322252083,-500.0,0.00021542,2]
[349599955,1737322252092,-633.64,0.00021542,2]
[349599956,1737322252102,-581.08,0.00021542,2]
[349599959,1737322252112,-505.9,0.00021542,2]
[349599960,1737322252125,-500.0,0.00021542,2]
[349599962,1737322252135,-595.1,0.00021542,2]
[349599964,1737322252146,-500.0,0.00021542,2]
[349599966,1737322252155,-619.73,0.00021542,2]
[349599968,1737322252165,-534.73,0.00021542,2]
[349599970,1737322252175,-770.67,0.00021542,2]
[349599972,1737322252185,-500.0,0.00021542,2]
[349599974,1737322252195,-500.0,0.00021542,2]
[349599976,1737322252204,-500.0,0.00021542,2]
[349599978,1737322252214,-1480.05,0.00021542,2]
[349599980,1737322252223,-500.0,0.00021542,2]
[349599982,1737322252233,-500.0,0.00021542,2]
[349599984,1737322252243,-1778.88,0.00021542,2]
[349599986,1737322252251,-649.07,0.00021542,2]
[349599988,1737322252261,-500.0,0.00021542,2]
[349599990,1737322252270,-770.99,0.00021542,2]
[349599992,1737322252279,-500.0,0.00021542,2]
[349599994,1737322252290,-500.0,0.00021542,2]
[349599996,1737322252300,-1405.28,0.00021542,2]
[349599998,1737322252309,-500.0,0.00021542,2]
[349600000,1737322252319,-500.0,0.00021542,2]
[349600002,1737322252330,-500.0,0.00021542,2]
[349600004,1737322252339,-500.0,0.00021542,2]
[349600006,1737322252350,-500.0,0.00021542,2]
[349600008,1737322252360,-924.51,0.00021542,2]
[349600010,1737322252369,-500.0,0.00021542,2]
[349600012,1737322252381,-500.0,0.00021542,2]
[349600014,1737322252391,-1750.43,0.00021542,2]
[349600017,1737322252402,-608.38,0.00021542,2]
[349600019,1737322252412,-500.0,0.00021542,2]
[349600021,1737322252422,-500.0,0.00021542,2]
[349600023,1737322252431,-500.09,0.00021542,2]
[349600025,1737322252441,-500.0,0.00021542,2]
[349600027,1737322252451,-940.93,0.00021542,2]
[349600029,1737322252460,-500.0,0.00021542,2]
[349600031,1737322252469,-863.64,0.00021542,2]
[349600033,1737322252479,-500.0,0.00021542,2]
[349600035,1737322252488,-500.0,0.00021542,2]
[349600037,1737322252497,-702.71,0.00021542,2]
[349600039,1737322252507,-500.0,0.00021542,2]
[349600041,1737322252516,-710.23,0.00021542,2]
[349600043,1737322252525,-500.0,0.00021542,2]
[349600045,1737322252534,-500.0,0.00021542,2]
[349600047,1737322252544,-543.52,0.00021542,2]
[349600049,1737322252554,-683.08,0.00021542,2]
[349600051,1737322252563,-1105.53,0.00021542,2]
[349600053,1737322252573,-593.7,0.00021542,2]
[349600055,1737322252583,-522.06,0.00021542,2]
[349600057,1737322252592,-500.0,0.00021542,2]
[349600059,1737322252602,-500.0,0.00021542,2]
[349600061,1737322252612,-807.0,0.00021542,2]
[349600063,1737322252625,-500.0,0.00021542,2]
[349600065,1737322252635,-522.78,0.00021542,2]
[349600067,1737322252648,-1482.4,0.00021542,2]
[349600069,1737322252658,-500.0,0.00021542,2]
[349600071,1737322252668,-500.0,0.00021542,2]
[349600073,1737322252678,-500.0,0.00021542,2]
[349600075,1737322252688,-500.0,0.00021542,2]
[349600077,1737322252697,-645.57,0.00021542,2]
[349600079,1737322252708,-533.68799921,0.00021542,2]
[349600081,1737322252717,-512.7,0.00021542,2]
[349600083,1737322252727,-876.46,0.00021608,2]
[349600085,1737322252737,-772.83,0.00021608,2]
[349600087,1737322252747,-772.83,0.00021608,2]
[349600088,1737322252756,-505.68,0.00021608,2]
[349600090,1737322252767,-772.83,0.00021608,2]
[349600092,1737322252777,-500.0,0.00021642,2]
[349600094,1737322252787,-500.0,0.00021642,2]
[349600096,1737322252798,-500.0,0.00021642,2]
[349600099,1737322252808,-500.0,0.00021642,2]
[349600100,1737322252819,-500.0,0.00021642,2]
[349600102,1737322252829,-500.0,0.00021642,2]
[349600104,1737322252839,-500.0,0.00021642,2]
[349600106,1737322252850,-322.52,0.00021642,2]
[349600108,1737322252861,-500.0,0.00021642,2]
[349600110,1737322252876,-500.0,0.00021642,2]
[349600112,1737322252887,-500.0,0.00021642,2]
[349600114,1737322252899,-500.0,0.00021642,2]
[349600116,1737322252910,-601.47,0.00021642,2]
[349600118,1737322252922,-500.0,0.00021642,2]
[349600120,1737322252936,-500.0,0.00021642,2]
[349600122,1737322252946,-598.93,0.00021642,2]
[349600124,1737322252957,-643.51,0.00021642,2]
[349600126,1737322252967,-500.0,0.00021642,2]
[349600128,1737322252978,-500.0,0.00021642,2]
[349600130,1737322252988,-500.0,0.00021642,2]
[349600132,1737322252998,-500.0,0.00021642,2]
[349600134,1737322253010,-500.0,0.00021642,2]
[349600135,1737322253021,-500.0,0.00021642,2]
[349600136,1737322253030,-500.0,0.00021642,2]
[349600137,1737322253041,-500.0,0.00021642,2]
[349600138,1737322253051,-870.44,0.00021642,2]
[349600139,1737322253063,-500.0,0.00021642,2]
[349600141,1737322253073,-500.0,0.00021642,2]
[349600143,1737322253084,-500.0,0.00021642,2]
[349600145,1737322253095,-500.0,0.00021642,2]
[349600147,1737322253105,-1267.35,0.00021642,2]
[349600149,1737322253115,-500.0,0.00021642,2]
[349600151,1737322253134,-500.0,0.00021642,2]
[349600153,1737322253144,-500.0,0.00021642,2]
[349600155,1737322253154,-500.0,0.00021642,2]
[349600157,1737322253164,-500.0,0.00021642,2]
[349600159,1737322253174,-500.0,0.00021642,2]
[349600161,1737322253183,-500.0,0.00021642,2]
[349600163,1737322253193,-1000.0,0.00021642,2]
[349600165,1737322253203,-500.0,0.00021642,2]
[349600167,1737322253213,-500.0,0.00021642,2]
[349600169,1737322253223,-500.0,0.00021642,2]
[349600171,1737322253233,-500.0,0.00021642,2]
[349600173,1737322253244,-500.0,0.00021642,2]
[349600175,1737322253255,-526.12,0.00021642,2]
[349600177,1737322253265,-500.0,0.00021642,2]
[349600179,1737322253275,-777.04,0.00021642,2]
[349600181,1737322253285,-502.23,0.00021642,2]
[349600183,1737322253294,-500.0,0.00021642,2]
[349600184,1737322253304,-232.63553212,0.00021642,2]
[349600186,1737322253313,-590.52,0.00021643,2]
[349600188,1737322253322,-500.0,0.00021643,2]
[349600190,1737322253332,-817.65,0.00021643,2]
[349600192,1737322253341,-500.0,0.00021643,2]
[349600194,1737322253351,-987.09,0.00021643,2]
[349600197,1737322253360,-500.0,0.00021643,2]
[349600198,1737322253370,-500.0,0.00021643,2]
[349600201,1737322253383,-502.43,0.00021643,2]
[349600206,1737322253424,-963.33,0.00021643,2]
[349600208,1737322253434,-500.0,0.00021643,2]